fUSD/lending_fUSD_20240702
["ID","MTS","AMOUNT","RATE_DAILY","PERIOD"]
[330871891,1719885100207,-508.11472119,0.00022465,4]
[330871892,1719885100217,-500.0,0.00022465,4]
[330871893,1719885100226,-1416.1238759,0.00022465,4]
[330871894,1719885100236,-550.49,0.00022465,4]
[330871895,1719885100247,-550.49,0.00022465,4]
[330871896,1719885100257,-151.0,0.00022465,7]
[330871897,1719885100266,-550.49,0.00022465,4]
[330871898,1719885100276,-500.0,0.00022465,4]
[330871899,1719885100285,-500.0,0.00022465,4]
[330871900,1719885100295,-151.0,0.00022465,7]
[330871901,1719885100309,-550.49,0.00022465,4]
[330871902,1719885100318,-501.87869466,0.00022465,4]
[330871903,1719885100328,-500.0,0.00022465,4]
[330871904,1719885100337,-550.49,0.00022465,4]
[330871905,1719885100346,-151.0,0.00022465,7]
[330871906,1719885100355,-500.0,0.00022465,4]
[330871907,1719885100364,-550.49,0.00022465,4]
[330871908,1719885100374,-500.0,0.00022465,4]
[330871909,1719885100383,-550.49,0.00022465,4]
[330871910,1719885100392,-500.0,0.00022465,4]
[330871911,1719885100401,-500.0,0.00022465,4]
[330871912,1719885100411,-500.0,0.00022465,4]
[330871913,1719885100420,-550.49,0.00022465,4]
[330871914,1719885100429,-500.0,0.00022465,4]
[330871915,1719885100438,-151.0,0.00022465,7]
[330871916,1719885100447,-500.0,0.00022465,4]
[330871917,1719885100456,-500.0,0.00022465,4]
[330871918,1719885100466,-550.49,0.00022465,4]
[330871919,1719885100475,-500.0,0.00022465,4]
[330871920,1719885100485,-500.0,0.00022465,4]
[330871921,1719885100494,-500.0,0.00022465,4]
[330871922,1719885100504,-151.0,0.00022465,7]
[330871923,1719885100513,-550.49,0.00022465,4]
[330871924,1719885100522,-500.0,0.00022465,4]
[330871925,1719885100531,-500.69945553,0.00022465,4]
[330871926,1719885100541,-500.0,0.00022465,4]
[330871927,1719885100552,-500.0,0.00022465,4]
[330871928,1719885100561,-502.88584452,0.00022465,4]
[330871929,1719885100570,-151.0,0.00022465,7]
[330871930,1719885100579,-550.49,0.00022465,4]
[330871931,1719885100588,-500.0,0.00022465,4]
[330871932,1719885100597,-500.0,0.00022465,4]
[330871933,1719885100607,-500.0,0.00022465,4]
[330871934,1719885100616,-550.49,0.00022465,4]
[330871935,1719885100625,-500.0,0.00022465,4]
[330871936,1719885100635,-500.0,0.00022465,4]
[330871937,1719885100644,-502.02321775,0.00022465,4]
[330871938,1719885100653,-500.0,0.00022465,4]
[330871939,1719885100663,-500.0,0.00022465,4]
[330871940,1719885100672,-550.49,0.00022465,4]
[330871941,1719885100681,-500.0,0.00022465,4]
[330871942,1719885100691,-500.0,0.00022465,4]
[330871943,1719885100700,-550.49,0.00022465,4]
[330871944,1719885100710,-500.0,0.00022465,4]
[330871945,1719885100719,-550.55992046,0.00022465,4]
[330871946,1719885100729,-500.0,0.00022465,4]
[330871947,1719885100738,-500.0,0.00022465,4]
[330871948,1719885100747,-233.965645,0.00022465,7]
[330871949,1719885100757,-500.0,0.00022465,4]
[330871950,1719885100767,-500.0,0.00022465,4]
[330871951,1719885100777,-500.0,0.00022465,4]
[330871952,1719885100787,-608.13045848,0.00022465,4]
[330871953,1719885100796,-500.0,0.00022465,4]
[330871954,1719885100806,-500.0,0.00022465,4]
[330871955,1719885100815,-500.0,0.00022465,4]
[330871956,1719885100825,-500.0,0.00022465,4]
[330871957,1719885100835,-541.88,0.00022465,4]
[330871958,1719885100845,-500.0,0.00022465,4]
[330871959,1719885100855,-500.0,0.00022465,4]
[330871960,1719885100864,-500.0,0.00022465,4]
[330871961,1719885100874,-505.00257561,0.00022465,4]
[330871962,1719885100885,-501.92880286,0.00022465,4]
[330871963,1719885100895,-500.0,0.00022465,4]
[330871964,1719885100905,-500.0,0.00022465,4]
[330871965,1719885100915,-500.0,0.00022465,4]
[330871966,1719885100925,-500.0,0.00022465,4]
[330871967,1719885100935,-500.0,0.00022465,4]
[330871968,1719885100945,-500.0,0.00022465,4]
[330871969,1719885100956,-500.0,0.00022465,4]
[330871970,1719885100966,-500.0,0.00022465,4]
[330871971,1719885100977,-5000.0,0.00022469,2]
[330871972,1719885100988,-8699.66,0.00022478,2]
[330871973,1719885100999,-500.0,0.0002248,4]
[330871974,1719885101008,-500.0,0.0002248,4]
[330871975,1719885101018,-264.96067632,0.0002248,4]
[330871976,1719885101028,-500.0,0.0002248,4]
[330871977,1719885101038,-1020.37,0.00022484,4]
[330871978,1719885101048,-500.0,0.00022484,4]
[330871979,1719885101058,-508.45,0.00022484,4]
[330871980,1719885101067,-500.0,0.00022484,4]
[330871981,1719885101078,-500.0,0.00022484,4]
[330871982,1719885101088,-254.02843043,0.00022484,4]
[330871983,1719885101098,-925.27,0.00022484,4]
[330871984,1719885101108,-506.72,0.00022484,4]
[330871985,1719885101117,-1611.2862789,0.00022485,2]
[330871986,1719885101128,-1375.3116481,0.00022485,2]
[330871987,1719885101138,-1139.3370173,0.00022485,2]
[330871988,1719885101147,-903.3623865,0.00022485,2]
[330871989,1719885101158,-667.3877558,0.00022485,2]
[330871990,1719885101172,-151.0,0.00022485,7]
[330871991,1719885101181,-152.528589,0.00022485,7]
[330871992,1719885101191,-27451.7475521,0.00022485,2]
[330871993,1719885101203,-23599.1748836,0.00022485,2]
[330871994,1719885101215,-19746.602215,0.00022485,2]
[330871995,1719885101225,-15894.0295465,0.00022485,2]
[330871996,1719885101234,-12041.456878,0.00022485,2]
[330871997,1719885101246,-2671.3569814,0.00022485,2]
[330871998,1719885101255,-2298.7273977,0.00022485,2]
[330871999,1719885101267,-1926.097814,0.00022485,2]
[330872000,1719885101278,-1553.4682304,0.00022485,2]
[330872001,1719885101288,-1180.8386467,0.00022485,2]
[330872002,1719885101298,-752.26,0.00022488,4]
[330872003,1719885101307,-500.0,0.00022488,4]
[330872004,1719885101317,-500.0,0.00022488,4]
[330872005,1719885101327,-500.0,0.00022488,4]
[330872006,1719885101338,-527.4,0.00022488,4]
[330872007,1719885101348,-521.39,0.00022488,4]
[330872008,1719885101358,-530.72,0.00022488,4]
[330872009,1719885101367,-500.0,0.00022488,4]
[330872010,1719885101377,-500.0,0.00022488,4]
[330872011,1719885101386,-500.0,0.00022488,4]
[330872012,1719885101396,-500.0,0.00022488,4]
[330872013,1719885101406,-500.0,0.00022489,4]
[330872014,1719885101417,-500.0,0.00022489,4]
[330872015,1719885101426,-500.0,0.00022489,4]
[330872016,1719885101435,-402.5992679,0.00022489,4]
[330872017,1719885101445,-500.0,0.00022489,4]
[330872018,1719885101455,-500.0,0.00022489,4]
[330872019,1719885101464,-500.0,0.00022489,4]
[330872020,1719885101473,-352.95556942,0.00022489,4]
[330872021,1719885101482,-500.0,0.00022489,4]
[330872022,1719885101491,-524.32986485,0.00022489,4]
[330872023,1719885101501,-285.524038,0.00022489,4]
[330872024,1719885101510,-551.2436658,0.00022489,4]
[330872025,1719885101519,-276.68824494,0.00022489,4]
[330872026,1719885101528,-500.0,0.00022489,4]
[330872027,1719885101538,-559.15438534,0.00022489,4]
[330872028,1719885101549,-211.55981824,0.00022489,4]
[330872029,1719885101558,-500.0,0.00022489,4]
[330872030,1719885101567,-500.0,0.00022489,4]
[330872031,1719885101577,-277.80407622,0.00022489,4]
[330872032,1719885101729,-500.0,0.00022489,4]
[330872033,1719885101739,-500.0,0.00022489,4]
[330872034,1719885101748,-500.0,0.00022489,4]
[330872035,1719885101758,-500.0,0.00022489,4]
[330872036,1719885101767,-500.0,0.00022489,4]
[330872037,1719885101777,-500.0,0.00022489,4]
[330872038,1719885101786,-400.06088776,0.00022489,4]
[330872039,1719885101795,-500.0,0.00022489,4]
[330872040,1719885101805,-500.0,0.00022489,4]
[330872041,1719885101815,-500.0,0.00022489,4]
[330872042,1719885101824,-500.0,0.00022489,4]
[330872043,1719885101833,-203.2364559,0.00022489,4]
[330872044,1719885101842,-500.0,0.00022489,4]
[330872045,1719885101851,-500.0,0.00022489,4]
[330872046,1719885101860,-500.0,0.00022489,4]
[330872047,1719885101869,-282.71241046,0.00022489,4]
[330872048,1719885101879,-500.0,0.00022489,4]
[330872049,1719885101888,-500.0,0.00022489,4]
[330872050,1719885101897,-224.21258291,0.00022489,4]
[330872051,1719885101906,-500.0,0.00022489,4]
[330872052,1719885101916,-500.0,0.00022489,4]
[330872053,1719885101926,-217.49436957,0.00022489,4]
[330872054,1719885101935,-392.14766029,0.00022489,4]
[330872055,1719885101944,-210.84122038,0.00022489,4]
[330872056,1719885101954,-181.29470024,0.00022489,4]
[330872057,1719885101963,-500.0,0.00022489,4]
[330872058,1719885101973,-500.0,0.00022489,4]
[330872059,1719885101983,-500.0,0.00022489,4]
[330872060,1719885101992,-500.0,0.00022489,4]
[330872061,1719885102002,-468.73997404,0.00022489,4]
[330872062,1719885102012,-338.46523845,0.00022489,4]
[330872063,1719885102021,-324.08326319,0.00022489,4]
[330872064,1719885102030,-500.0,0.00022489,4]
[330872065,1719885102040,-495.02436355,0.00022489,4]
[330872066,1719885102051,-290.0779778,0.00022489,4]
[330872067,1719885102061,-151.0,0.00022489,7]
[330872068,1719885102070,-151.0,0.00022489,7]
[330872069,1719885102082,-437.31520782,0.00022489,4]
[330872070,1719885102093,-500.0,0.00022489,4]
[330872071,1719885102103,-186.73037909,0.00022489,4]
[330872072,1719885102114,-500.0,0.00022489,4]
[330872073,1719885102124,-500.0,0.00022489,4]
[330872074,1719885102134,-500.0,0.00022489,4]
[330872075,1719885102143,-500.0,0.00022489,4]
[330872076,1719885102152,-523.08754507,0.00022489,4]
[330872077,1719885102168,-500.0,0.00022489,4]
[330872078,1719885102176,-500.0,0.00022489,4]
[330872079,1719885102186,-500.0,0.00022489,4]
[330872080,1719885102196,-179.09159025,0.00022489,4]
[330872081,1719885102206,-533.99146277,0.00022489,4]
[330872082,1719885102215,-575.11358666,0.00022489,4]
[330872083,1719885102225,-432.56260393,0.00022489,4]
[330872084,1719885102234,-500.0,0.00022489,4]
[330872085,1719885102246,-269.6426924,0.00022489,4]
[330872086,1719885102258,-470.39271934,0.00022489,4]
[330872087,1719885102271,-500.0,0.00022489,4]
[330872088,1719885102280,-500.0,0.00022489,4]
[330872089,1719885102290,-368.19839752,0.00022489,4]
[330872090,1719885102301,-500.0,0.00022489,4]
[330872091,1719885102310,-500.0,0.00022489,4]
[330872092,1719885102320,-646.98,0.00022489,4]
[330872093,1719885102329,-500.0,0.00022489,4]
[330872094,1719885102339,-1374.96,0.00022489,4]
[330872095,1719885102349,-230.98536801,0.00022489,4]
[330872096,1719885102359,-500.0,0.00022489,4]
[330872097,1719885102369,-500.0,0.00022489,4]
[330872098,1719885102379,-500.0,0.00022489,4]
[330872099,1719885102388,-500.0,0.00022489,4]
[330872100,1719885102399,-547.39121801,0.00022489,4]
[330872101,1719885102408,-199.20112581,0.00022489,4]
[330872102,1719885102418,-500.0,0.00022489,4]
[330872103,1719885102428,-500.0,0.00022489,4]
[330872104,1719885102437,-500.0,0.00022489,4]
[330872105,1719885102446,-500.0,0.00022489,4]
[330872106,1719885102457,-500.0,0.00022489,4]
[330872107,1719885102467,-500.0,0.00022489,4]
[330872108,1719885102476,-500.0,0.00022489,4]
[330872109,1719885102485,-500.0,0.00022489,4]
[330872110,1719885102494,-500.0,0.00022489,4]
[330872111,1719885102504,-500.0,0.00022489,4]
[330872112,1719885102515,-500.0,0.00022489,4]
[330872113,1719885102524,-396.90015966,0.00022489,4]
[330872114,1719885102534,-500.0,0.00022489,4]
[330872115,1719885102544,-500.0,0.00022489,4]
[330872116,1719885102555,-500.0,0.00022489,4]
[330872117,1719885102563,-500.0,0.00022489,4]
[330872118,1719885102573,-500.0,0.00022489,4]
[330872119,1719885102582,-500.0,0.00022489,4]
[330872120,1719885102591,-500.0,0.00022489,4]
[330872121,1719885102601,-500.0,0.00022489,4]
[330872122,1719885102610,-1020.37,0.00022489,4]
[330872123,1719885102619,-500.0,0.00022489,4]
[330872124,1719885102629,-500.0,0.00022489,4]
[330872125,1719885102638,-500.0,0.00022489,2]
[330872126,1719885102647,-500.0,0.00022489,4]
[330872127,1719885102657,-500.0,0.00022489,4]
[330872128,1719885102666,-327.74400866,0.00022489,4]
[330872129,1719885102675,-500.0,0.00022489,4]
[330872130,1719885102685,-500.0,0.00022489,4]
[330872131,1719885102694,-500.0,0.00022489,4]
[330872132,1719885102704,-508.45,0.00022489,4]
[330872133,1719885102713,-500.0,0.00022489,4]
[330872134,1719885102723,-500.0,0.00022489,4]
[330872135,1719885102732,-500.0,0.00022489,4]
[330872136,1719885102741,-500.0,0.00022489,4]
[330872137,1719885102750,-500.0,0.00022489,4]
[330872138,1719885102758,-500.0,0.00022489,4]
[330872139,1719885102768,-500.0,0.00022489,4]
[330872140,1719885102777,-500.0,0.00022489,4]
[330872141,1719885102786,-500.0,0.00022489,4]
[330872142,1719885102795,-500.0,0.00022489,4]
[330872143,1719885102806,-500.0,0.00022489,4]
[330872144,1719885102814,-500.0,0.00022489,4]
[330872145,1719885102824,-500.0,0.00022489,4]
[330872146,1719885102833,-276.34972407,0.00022489,4]
[330872147,1719885102842,-295.64108009,0.00022489,4]
[330872148,1719885102851,-500.0,0.00022489,4]
[330872149,1719885102860,-500.0,0.00022489,4]
[330872150,1719885102870,-247.85922332,0.00022489,4]
[330872151,1719885102879,-500.0,0.00022489,4]
[330872152,1719885102888,-500.0,0.00022489,4]
[330872153,1719885102897,-275.85198733,0.00022489,4]
[330872154,1719885102906,-500.0,0.00022489,4]
[330872155,1719885102916,-500.0,0.00022489,4]
[330872156,1719885102924,-500.0,0.00022489,4]
[330872157,1719885102933,-500.0,0.00022489,4]
[330872158,1719885102942,-500.0,0.00022489,4]
[330872159,1719885102951,-500.0,0.00022489,4]
[330872160,1719885102961,-500.0,0.00022489,4]
[330872161,1719885102970,-500.0,0.00022489,4]
[330872162,1719885102979,-500.0,0.00022489,4]
[330872163,1719885102988,-552.07555563,0.00022489,4]
[330872164,1719885102999,-232.90106954,0.00022489,4]
[330872165,1719885103008,-433.32622909,0.00022489,4]
[330872166,1719885103017,-500.0,0.00022489,4]
[330872167,1719885103026,-500.0,0.00022489,4]
[330872168,1719885103035,-500.0,0.00022489,4]
[330872169,1719885103045,-545.4,0.00022489,4]
[330872170,1719885103055,-337.34124586,0.00022489,4]
[330872171,1719885103065,-500.0,0.00022489,4]
[330872172,1719885103074,-500.0,0.00022489,4]
[330872173,1719885103083,-500.0,0.00022489,4]
[330872174,1719885103092,-500.0,0.00022489,4]
[330872175,1719885103102,-500.0,0.00022489,4]
[330872176,1719885103111,-500.0,0.00022489,4]
[330872177,1719885103121,-500.0,0.00022489,4]
[330872178,1719885103130,-500.0,0.00022489,4]
[330872179,1719885103140,-500.0,0.00022489,4]
[330872180,1719885103150,-500.0,0.00022489,4]
[330872181,1719885103160,-500.0,0.00022489,4]
[330872182,1719885103175,-500.0,0.00022489,4]
[330872183,1719885103185,-314.16447956,0.00022489,4]
[330872184,1719885103194,-500.0,0.00022489,4]
[330872185,1719885103204,-500.0,0.00022489,4]
[330872186,1719885103215,-500.0,0.00022489,4]
[330872187,1719885103224,-500.0,0.00022489,4]
[330872188,1719885103234,-500.0,0.00022489,4]
[330872189,1719885103245,-500.0,0.00022489,4]
[330872190,1719885103255,-589.96,0.00022489,4]
[330872191,1719885103267,-222.17587286,0.00022489,4]
[330872192,1719885103278,-500.0,0.00022489,4]
[330872193,1719885103288,-383.69063494,0.00022489,4]
[330872194,1719885103297,-500.0,0.00022489,4]
[330872195,1719885103308,-500.0,0.00022489,4]
[330872196,1719885103317,-500.0,0.00022489,4]
[330872197,1719885103332,-500.0,0.00022489,4]
[330872198,1719885103341,-685.77,0.00022489,4]
[330872199,1719885103350,-500.0,0.00022489,4]
[330872200,1719885103360,-764.26,0.00022489,4]
[330872201,1719885103369,-500.0,0.00022489,4]
[330872202,1719885103378,-500.0,0.00022489,4]
[330872203,1719885103387,-500.0,0.00022489,4]
[330872204,1719885103396,-500.0,0.00022489,4]
[330872205,1719885103406,-532.0,0.00022489,4]
[330872206,1719885103415,-500.0,0.00022489,4]
[330872207,1719885103426,-500.0,0.00022489,4]
[330872208,1719885103437,-500.0,0.00022489,4]
[330872209,1719885103446,-500.0,0.00022489,4]
[330872210,1719885103455,-500.0,0.00022489,4]
[330872211,1719885103465,-500.0,0.00022489,4]
[330872212,1719885103476,-500.0,0.00022489,4]
[330872213,1719885103488,-2094.77,0.00022489,4]
[330872214,1719885103497,-500.0,0.00022489,4]
[330872215,1719885103507,-500.0,0.00022489,4]
[330872216,1719885103516,-500.0,0.00022489,4]
[330872217,1719885103528,-500.0,0.00022489,4]
[330872218,1719885103541,-500.0,0.00022489,4]
[330872219,1719885103552,-925.27,0.00022489,4]
[330872220,1719885103561,-500.0,0.00022489,4]
[330872221,1719885103570,-587.4437454,0.00022489,4]
[330872222,1719885103579,-2090.75,0.00022489,4]
[330872223,1719885103590,-500.0,0.00022489,4]
[330872224,1719885103600,-503.12,0.00022489,4]
[330872225,1719885103611,-500.0,0.00022489,4]
[330872226,1719885103620,-926.44,0.00022489,4]
[330872227,1719885103630,-566.57,0.00022489,4]
[330872228,1719885103639,-500.0,0.00022489,4]
[330872229,1719885103648,-926.44,0.00022489,4]
[330872230,1719885103657,-500.0,0.00022489,4]
[330872231,1719885103667,-287.66207652,0.00022489,4]
[330872232,1719885103677,-500.0,0.00022489,4]
[330872233,1719885103687,-500.0,0.00022489,4]
[330872234,1719885103697,-540.84,0.00022489,4]
[330872235,1719885103707,-500.0,0.00022489,4]
[330872236,1719885103718,-616.42,0.00022489,4]
[330872237,1719885103728,-616.42,0.00022489,4]
[330872238,1719885103738,-500.0,0.00022489,4]
[330872239,1719885103748,-500.0,0.00022489,4]
[330872240,1719885103758,-500.0,0.00022489,4]
[330872241,1719885103770,-441.39973345,0.00022489,4]
[330872242,1719885103781,-2131.85,0.00022489,4]
[330872243,1719885103791,-500.0,0.00022489,4]
[330872244,1719885103801,-500.0,0.00022489,4]
[330872245,1719885103811,-500.0,0.00022489,4]
[330872246,1719885103820,-536.63,0.00022489,4]
[330872247,1719885103831,-500.0,0.00022489,4]
[330872248,1719885103840,-500.0,0.00022489,4]
[330872249,1719885103849,-500.0,0.00022489,4]
[330872250,1719885103859,-515.07,0.00022489,4]
[330872251,1719885103868,-500.0,0.00022489,4]
[330872252,1719885103877,-500.0,0.00022489,4]
[330872253,1719885103887,-500.0,0.00022489,4]
[330872254,1719885103896,-500.0,0.00022489,4]
[330872255,1719885103905,-500.0,0.00022489,4]
[330872256,1719885103914,-500.0,0.00022489,4]
[330872257,1719885103923,-506.72,0.00022489,4]
[330872258,1719885103933,-500.0,0.00022489,4]
[330872259,1719885103942,-500.0,0.00022489,4]
[330872260,1719885103952,-500.0,0.00022489,4]
[330872261,1719885103967,-500.0,0.00022489,4]
[330872262,1719885103978,-500.0,0.00022489,4]
[330872263,1719885103989,-109640.15113293,0.0002249,2]
[330872264,1719885103999,-152.567998,0.0002249,7]
[330872265,1719885104008,-500.0,0.00022492,4]
[330872266,1719885104018,-500.0,0.00022492,4]
[330872267,1719885104027,-500.0,0.00022492,4]
[330872268,1719885104038,-1020.37,0.00022492,4]
[330872269,1719885104047,-508.45,0.00022492,4]
[330872270,1719885104058,-500.0,0.00022492,4]
[330872271,1719885104067,-500.0,0.00022492,4]
[330872272,1719885104076,-925.27,0.00022492,4]
[330872273,1719885104085,-506.72,0.00022492,4]
[330872274,1719885104095,-150.98,0.00022493,2]
[330872275,1719885104104,-150.0,0.00022493,2]
[330872276,1719885104114,-424.24,0.00022493,2]
[330872277,1719885104123,-150.0,0.00022493,2]
[330872278,1719885104225,-150.0,0.00022493,2]
[330872279,1719885104236,-354.77,0.00022493,2]
[330872280,1719885104249,-528.33,0.00022493,2]
[330872281,1719885104258,-150.0,0.00022493,2]
[330872282,1719885104269,-164.82,0.00022493,2]
[330872283,1719885104278,-150.0,0.00022493,2]
[330872284,1719885104289,-150.0,0.00022493,2]
[330872285,1719885104300,-164.82,0.00022493,2]
[330872286,1719885104309,-300.61,0.00022493,2]
[330872287,1719885104318,-150.0,0.00022493,2]
[330872288,1719885104327,-150.0,0.00022493,2]
[330872289,1719885104337,-636.43,0.00022493,2]
[330872290,1719885104346,-427.44,0.00022493,2]
[330872291,1719885104356,-150.0,0.00022493,2]
[330872292,1719885104365,-150.0,0.00022493,2]
[330872293,1719885104374,-164.82,0.00022493,2]
[330872294,1719885104384,-164.82,0.00022493,2]
[330872295,1719885104393,-853.94,0.00022493,2]
[330872296,1719885104403,-853.94,0.00022493,2]
[330872297,1719885104412,-853.94,0.00022493,2]
[330872298,1719885104420,-418.94,0.00022493,2]
[330872299,1719885104429,-853.94,0.00022493,2]
[330872300,1719885104439,-853.94,0.00022493,2]
[330872301,1719885104448,-418.94,0.00022493,2]
[330872302,1719885104457,-853.94,0.00022493,2]
[330872303,1719885104466,-853.94,0.00022493,2]
[330872304,1719885104475,-418.94,0.00022493,2]
[330872305,1719885104484,-418.94,0.00022493,2]
[330872306,1719885104493,-418.94,0.00022493,2]
[330872307,1719885104502,-670.33,0.00022493,2]
[330872308,1719885104511,-182.57,0.00022493,2]
[330872309,1719885104519,-1847.2609096,0.00022494,2]
[330872310,1719885104529,-31304.3202206,0.00022494,2]
[330872311,1719885104539,-3043.9865651,0.00022494,2]
[330872312,1719885104548,-209.73197584,0.00022498,2]
[330872313,1719885104557,-5918.68096825,0.00022498,2]
[330872314,1719885104566,-500.0,0.00022498,4]
[330872315,1719885104575,-461.17848072,0.00022498,4]
[330872316,1719885104584,-500.0,0.00022498,4]
[330872317,1719885104594,-682.29,0.00022498,4]
[330872318,1719885104603,-500.0,0.00022498,4]
[330872319,1719885104611,-633.59175902,0.00022498,4]
[330872320,1719885104621,-189.32856183,0.00022498,4]
[330872321,1719885104630,-500.0,0.00022498,4]
[330872322,1719885104639,-764.26,0.00022498,4]
[330872323,1719885104649,-764.26,0.00022498,4]
[330872324,1719885104658,-764.26,0.00022498,4]
[330872325,1719885104667,-764.26,0.00022498,4]
[330872326,1719885104677,-764.4502992,0.00022498,4]
[330872327,1719885104686,-1770.53,0.00022498,4]
[330872328,1719885104695,-540.84,0.00022498,4]
[330872329,1719885104704,-540.84,0.00022498,4]
[330872330,1719885104714,-540.84,0.00022498,4]
[330872331,1719885104723,-540.84,0.00022498,4]
[330872332,1719885104732,-540.9516117,0.00022498,4]
[330872333,1719885104741,-549.92,0.00022498,4]
[330872334,1719885104751,-515.07,0.00022498,4]
[330872335,1719885104760,-515.07,0.00022498,4]
[330872336,1719885104769,-515.07,0.00022498,4]
[330872337,1719885104779,-515.07,0.00022498,4]
[330872338,1719885104788,-515.18498254,0.00022498,4]
[330872339,1719885104798,-578.18,0.00022498,4]
[330872340,1719885104808,-1424.44476162,0.00022499,10]
[330872341,1719885104817,-648.88272575,0.00022499,4]
[330872342,1719885104826,-462.15742309,0.00022499,4]
[330872343,1719885104835,-632.32837832,0.00022499,4]
[330872344,1719885104844,-298.46058163,0.00022499,4]
[330872345,1719885104853,-393.9221328,0.00022499,4]
[330872346,1719885104862,-178.56913823,0.00022499,4]
[330872347,1719885104872,-500.0,0.00022499,4]
[330872348,1719885104881,-500.0,0.00022499,4]
[330872349,1719885104890,-500.0,0.00022499,4]
[330872350,1719885104899,-500.0,0.00022499,4]
[330872351,1719885104908,-501.71048869,0.00022499,4]
[330872352,1719885104917,-475.4215134,0.00022499,4]
[330872353,1719885104927,-500.0,0.00022499,4]
[330872354,1719885104936,-232.38993797,0.00022499,4]
[330872355,1719885104947,-400.49781458,0.00022499,4]
[330872356,1719885104956,-302.79282607,0.00022499,4]
[330872357,1719885104966,-500.0,0.00022499,4]
[330872358,1719885104975,-500.0,0.00022499,4]
[330872359,1719885104984,-248.74702988,0.00022499,4]
[330872360,1719885104993,-166.46666347,0.00022499,4]
[330872361,1719885105002,-500.0,0.00022499,4]
[330872362,1719885105012,-500.0,0.00022499,4]
[330872363,1719885105021,-500.0,0.00022499,4]
[330872364,1719885105030,-500.0,0.00022499,4]
[330872365,1719885105039,-163.05097773,0.00022499,4]
[330872366,1719885105049,-400.49970008,0.00022499,4]
[330872367,1719885105059,-162.48088326,0.00022499,4]
[330872368,1719885105069,-500.0,0.00022499,4]
[330872369,1719885105078,-262.79177455,0.00022499,4]
[330872370,1719885105087,-500.0,0.00022499,4]
[330872371,1719885105096,-229.08266516,0.00022499,4]
[330872372,1719885105106,-500.0,0.00022499,4]
[330872373,1719885105116,-323.54250472,0.00022499,4]
[330872374,1719885105125,-283.61261437,0.00022499,4]
[330872375,1719885105135,-500.0,0.00022499,4]
[330872376,1719885105145,-395.70262438,0.00022499,4]
[330872377,1719885105154,-500.0,0.00022499,4]
[330872378,1719885105164,-192.51166008,0.00022499,4]
[330872379,1719885105176,-500.0,0.00022499,4]
[330872380,1719885105186,-224.6119615,0.00022499,4]
[330872381,1719885105195,-500.0,0.00022499,4]
[330872382,1719885105205,-500.0,0.00022499,4]
[330872383,1719885105214,-500.0,0.00022499,4]
[330872384,1719885105224,-500.0,0.00022499,4]
[330872385,1719885105233,-500.0,0.00022499,4]
[330872386,1719885105243,-495.83876612,0.00022499,4]
[330872387,1719885105253,-500.0,0.00022499,4]
[330872388,1719885105264,-500.0,0.00022499,4]
[330872389,1719885105275,-500.0,0.00022499,4]
[330872390,1719885105285,-240.37760233,0.00022499,4]